bitfinex/quotes_ETHUSD_20220109
["timestamp","ask_amount","ask_price","bid_price","bid_amount"]
[1641760829137,0.00795793,3196.9,3196.8,4.86353]
[1641760830938,0.00795793,3196.9,3196.8,23.49758207]
[1641760831142,0.00795793,3196.9,3196.8,24.79758207]
[1641760831926,0.00795793,3196.9,3196.8,24.87578207]
[1641760832525,0.00132784,3197.4,3197.0,18.27]
[1641760832723,0.00132784,3197.4,3197.2,1.563339]
[1641760832923,0.00227369,3197.3,3197.2,1.863339]
[1641760833124,0.00067353,3197.4,3197.2,1.941519]
[1641760834225,3.9969,3198.1,3197.2,1.941519]
[1641760834425,3.9969,3198.1,3197.6,0.7817]
[1641760834625,1.16057844,3198.0,3197.6,0.7817]
[1641760835027,0.00341054,3197.9,3197.6,0.7817]
[1641760835529,0.00284212,3197.8,3197.7,0.7815705]
[1641760835743,0.00284212,3197.8,3197.7,5.8946805]
[1641760835945,0.00332466,3197.8,3197.7,5.8946805]
[1641760836145,6.11332466,3197.8,3197.7,3.3446805]
[1641760836349,6.11332466,3197.8,3197.7,4.88682209]
[1641760836543,2.66150261,3198.4,3198.1,0.78143]
[1641760836940,2.66150261,3198.4,3198.2,0.00113685]
[1641760837140,4.724,3198.6,3198.2,0.00113685]
[1641760837349,3.31595,3199.2,3198.2,0.00113685]
[1641760837350,3.99193071,3199.1,3198.2,0.00113685]
[1641760837543,3.99193071,3199.1,3198.4,0.7813478]
[1641760837842,3.99193071,3199.1,3198.9,0.78138]
[1641760838241,10.10193071,3199.1,3198.9,0.78138]
[1641760838446,8.77107236,3199.1,3198.9,0.78138]
[1641760838643,8.77107236,3199.1,3198.9,3.312622]
[1641760838847,2.52218236,3199.1,3199.0,0.3]
[1641760839046,6.88,3199.6,3199.2,0.78109]
[1641760839247,6.88,3199.6,3199.3,18.72]
[1641760839522,6.88,3199.6,3199.4,2.74216917]
[1641760839708,12.99,3199.6,3199.5,18.27]
[1641760839911,12.99,3199.6,3199.5,19.27]
[1641760840112,12.99682108,3199.6,3199.5,20.0125]
[1641760840311,101.87788733,3199.9,3199.6,0.03868139]
[1641760840609,0.00113685,3199.8,3199.6,18.30868139]
[1641760840834,0.00113685,3199.8,3199.7,18.72]
[1641760841108,100.0,3199.9,3199.7,18.72]
[1641760841109,93.75404685,3199.9,3199.7,19.02]
[1641760841411,87.50690685,3199.9,3199.8,18.27]
[1641760841609,87.50690685,3199.9,3199.8,19.64811]
[1641760844235,87.50690685,3199.9,3199.8,1.37811]
[1641760844538,87.50690685,3199.9,3199.8,0.07811]
[1641760844938,88.88375631,3199.9,3199.6,1.60054139]
[1641760845339,1.17418572,3199.7,3199.6,1.60054139]
[1641760845642,88.88375631,3199.9,3199.6,1.60167824]
[1641760846240,87.50690685,3199.9,3199.6,1.60167824]
[1641760847394,87.50690685,3199.9,3199.5,30.19471692]
[1641760848197,1.35161501,3199.6,3199.5,30.19471692]
[1641760848393,87.50690685,3199.9,3199.5,30.19471692]
[1641760848995,87.40690685,3199.9,3199.5,30.19471692]
[1641760849396,87.40690685,3199.9,3199.5,1.56219]
[1641760850639,1.41791128,3199.8,3199.5,1.56219]
[1641760850834,87.40690685,3199.9,3199.6,0.99966883]
[1641760852436,88.66257844,3199.9,3199.7,0.78107]
[1641760852637,88.66257844,3199.9,3199.6,0.18470609]
[1641760852936,87.40690685,3199.9,3199.6,0.18470609]
[1641760853636,87.40690685,3199.9,3199.7,18.27]
[1641760853837,87.40690685,3199.9,3199.8,18.27]
[1641760854140,81.16101212,3199.9,3199.8,18.27]
[1641760854391,81.16101212,3199.9,3199.7,1.08107]
[1641760854589,81.16101212,3199.9,3199.7,1.38107]
[1641760854789,0.00113685,3199.8,3199.7,1.38107]
[1641760854988,0.00113685,3199.8,3199.7,1.68107]
[1641760855388,0.00113685,3199.8,3199.7,1.38107]
[1641760855789,0.00113685,3199.8,3199.7,1.68107]
[1641760855991,0.00113685,3199.8,3199.7,1.38107]
[1641760856191,0.00033685,3199.8,3199.7,1.38107]
[1641760856391,0.00033685,3199.8,3199.7,1.68107]
[1641760856594,0.00033685,3199.8,3199.7,1.38107]
[1641760857191,0.00033685,3199.8,3199.7,1.68107]
[1641760857392,0.00033685,3199.8,3199.7,1.38107]
[1641760857795,0.00033685,3199.8,3199.7,1.68107]
[1641760857991,0.00033685,3199.8,3199.7,20.4320611]
[1641760858247,81.15930685,3199.9,3199.8,18.27]
[1641760858639,81.15930685,3199.9,3199.8,19.57]
[1641760859238,81.15930685,3199.9,3199.7,1.6401911]
[1641760859444,81.15930685,3199.9,3199.7,0.78107]
[1641760861541,81.15930685,3199.9,3199.7,1.38107]
[1641760862685,81.15930685,3199.9,3199.7,2.1621]
[1641760863082,81.15930685,3199.9,3199.7,2.160505]
[1641760864486,81.11820685,3199.9,3199.7,2.160505]
[1641760867045,81.11820685,3199.9,3199.8,0.3]
[1641760867343,81.11820685,3199.9,3199.7,1.860505]
[1641760867944,81.11820685,3199.9,3199.7,1.079475]
[1641760868142,6.58077992,3199.8,3199.7,0.78107]
[1641760868343,0.02520728,3199.7,3199.5,0.78127]
[1641760868543,3.95,3199.8,3199.5,0.78127]
[1641760868744,1.22340222,3199.6,3199.5,0.78127]
[1641760869141,1.22340222,3199.6,3199.5,0.78297527]
[1641760877394,1.22340222,3199.6,3199.5,0.00170527]
[1641760877591,13.52340222,3199.6,3199.5,0.00170527]
[1641760877789,13.60153222,3199.6,3199.2,0.00341054]
[1641760877991,0.07813,3199.5,3199.0,0.00454739]
[1641760878389,0.07813,3199.5,3198.2,0.00909478]
[1641760878590,1.53878585,3199.1,3198.9,0.78145]
[1641760878989,1.53878585,3199.1,3199.0,0.00454739]
[1641760880098,2.66044516,3199.4,3199.0,1.56720739]
[1641760880492,2.66044516,3199.4,3199.1,0.00397896]
[1641760880746,0.00132056,3199.6,3199.2,0.78119]
[1641760881144,1.14319115,3199.6,3199.3,0.00284212]
[1641760881342,1.14319115,3199.6,3199.3,2.96866344]
[1641760881544,0.00132056,3199.6,3199.4,0.0422251]
[1641760881745,0.00113685,3199.5,3199.4,0.78118]
[1641760884386,1.37656328,3199.5,3199.4,0.78118]
[1641760885291,4.0366528,3199.5,3199.4,0.78118]
[1641760885888,1.37656328,3199.5,3199.4,0.78118]
[1641760888157,0.00113685,3199.5,3199.4,0.78118]
[1641760892093,0.00113685,3199.5,3199.4,0.73118]
[1641760893694,0.00113685,3199.5,3199.1,0.07813]
[1641760893895,1.48243045,3199.1,3199.0,0.07813]
[1641760894096,1.48243045,3199.1,3199.0,0.85941]
[1641760894294,1.48243045,3199.1,3199.0,0.86111527]
[1641760896938,2.83082306,3199.1,3199.0,0.86111527]
[1641760898639,2.83082306,3199.1,3199.0,0.78298527]
[1641760899690,1.48243045,3199.1,3199.0,1.56427317]
[1641760901089,1.48243045,3199.1,3199.0,0.78298527]
[1641760908391,0.03058741,3199.8,3199.1,0.06591894]
[1641760908592,0.03058741,3199.8,3199.0,0.78298527]
[1641760908593,0.07814,3199.8,3199.0,0.78298527]
[1641760908897,1.04397854,3199.6,3199.4,0.78126]
[1641760909693,1.35378263,3199.5,3199.4,0.78126]
[1641760911144,0.00113685,3199.7,3199.4,0.78126]
[1641760911342,0.00113685,3199.7,3199.5,0.05194452]
[1641760911546,0.00113685,3199.7,3199.3,1.56251]
[1641760911742,0.00113685,3199.7,3199.6,0.78113]
[1641760911941,0.00113685,3199.7,3199.5,1.56225]
[1641760912342,0.00113685,3199.7,3199.5,2.343375]
[1641760912943,0.00113685,3199.7,3199.6,1.56227]
[1641760913146,0.00113685,3199.7,3199.6,4.0097519]
[1641760913544,0.00113685,3199.7,3199.6,1.56227]
[1641760913745,0.00113685,3199.7,3199.6,3.97229604]
[1641760913945,0.00113685,3199.7,3199.6,1.56227]
[1641760915598,0.00113685,3199.7,3199.6,3.95659021]
[1641760915797,0.00113685,3199.7,3199.6,4.03472021]
[1641760916802,0.00113685,3199.7,3199.6,1.6404]
[1641760919851,0.00113685,3199.7,3199.6,1.56227]
[1641760922100,7.20113685,3199.7,3199.4,0.85947]
[1641760922295,2.78568595,3199.6,3199.4,0.85947]
[1641760922493,0.00113685,3199.7,3199.4,0.78134]
[1641760922693,1.12916076,3199.6,3199.4,0.78134]
[1641760923898,1.23273142,3199.5,3199.4,0.78134]
[1641760927048,3.78723543,3199.5,3199.2,1.56261]
[1641760927350,6.44755491,3199.5,3199.3,0.00113685]
[1641760927545,2.66031948,3199.4,3199.3,0.00113685]
[1641760928847,4.01846273,3199.5,3199.3,0.00113685]
[1641760929049,1.42963142,3199.5,3199.3,0.00113685]
[1641760929496,2.66036102,3199.4,3199.3,0.00113685]
[1641760929695,2.73849102,3199.4,3199.3,0.00113685]
[1641760929999,5.25724838,3199.4,3199.3,0.00113685]
[1641760930496,2.73849102,3199.4,3199.3,0.00113685]
[1641760931297,2.66036102,3199.4,3199.3,0.00113685]
[1641760931497,1.42963142,3199.5,3199.3,0.00113685]
[1641760931898,1.23273142,3199.5,3199.3,0.00113685]
[1641760932100,1.23273142,3199.5,3199.4,0.78134]
[1641760933741,1.23273142,3199.5,3199.3,0.00113685]
[1641760934141,1.23273142,3199.5,3199.1,0.00227369]
[1641760934341,1.20729076,3199.6,3199.1,0.00227369]
[1641760934642,1.12916076,3199.6,3199.4,0.78134]
[1641760935243,1.12916076,3199.6,3199.5,0.07813]
[1641760936050,2.30373656,3199.6,3199.5,0.07813]
[1641760936892,2.30373656,3199.6,3199.5,1.64051]
[1641760937697,2.30373656,3199.6,3199.5,1.56238]
[1641760938093,1.1745758,3199.6,3199.5,1.56238]
[1641760941555,1.0671712,3199.7,3199.5,1.56238]
[1641760941955,81.11820685,3199.9,3199.5,1.56238]
[1641760942155,81.11820685,3199.9,3199.5,2.3435373]
[1641760942356,0.00170527,3199.8,3199.6,0.04790283]
[1641760942560,0.00170527,3199.8,3199.5,1.56238]
[1641760942861,0.00113685,3199.7,3199.6,0.78112]
[1641760944257,0.00113685,3199.7,3199.6,0.85925]
[1641760949741,0.00113685,3199.7,3199.6,0.78112]
[1641760950742,1.13290757,3199.7,3199.6,0.78112]
[1641760953597,4.53290757,3199.7,3199.6,0.78112]
[1641760953797,7.15264312,3199.7,3199.6,0.78112]
[1641760958447,4.53290757,3199.7,3199.6,0.78112]
[1641760958844,1.13290757,3199.7,3199.6,0.78112]
[1641760959597,4.58290757,3199.7,3199.6,0.78112]
[1641760959798,1.13290757,3199.7,3199.6,0.78112]
[1641760960597,4.38290757,3199.7,3199.6,0.78112]
[1641760961799,1.13290757,3199.7,3199.6,0.78112]
[1641760966647,4.33290757,3199.7,3199.6,0.78112]
[1641760966908,9.65904081,3199.7,3199.6,0.78112]
[1641760968492,6.99890077,3199.7,3199.6,0.78112]
[1641760968898,3.79890077,3199.7,3199.6,0.78112]
[1641760969094,1.13290757,3199.7,3199.6,0.78112]
[1641760973247,1.13177072,3199.7,3199.6,0.78112]
[1641760973644,1.13177072,3199.7,3199.4,1.56249]
[1641760974997,81.11820685,3199.9,3199.6,0.78112]
[1641760975394,0.00170527,3199.8,3199.6,0.78112]
[1641760975800,0.00113685,3199.7,3199.6,0.78112]
[1641760984200,1.29228035,3199.8,3199.6,0.78112]
[1641760984802,1.29228035,3199.8,3199.6,1.5622704]
[1641760985200,1.29228035,3199.8,3199.7,1.56225]
[1641760987647,81.11820685,3199.9,3199.7,1.56225]
[1641760987847,81.11820685,3199.9,3199.7,2.3433833]
[1641760988050,81.11820685,3199.9,3199.8,0.78112]
[1641760988454,81.11934369,3199.9,3199.8,0.78112]
[1641760989599,82.40069143,3199.9,3199.8,0.78112]
[1641760991700,82.40069143,3199.9,3199.7,1.56225]
[1641760991901,5.91560225,3199.8,3199.7,1.56225]
[1641760992311,9.76560225,3199.8,3199.4,1.56255]
[1641760992602,12.42559668,3199.8,3199.5,0.00113685]
[1641760993000,1.08231152,3199.7,3199.5,0.00113685]
[1641760993258,8.9939824,3199.6,3199.5,0.00113685]
[1641760993647,8.9939824,3199.6,3199.1,0.00341054]
[1641760994049,8.9939824,3199.6,3199.0,0.00397897]
[1641760994250,11.65397683,3199.6,3199.0,0.00397897]
[1641760994448,11.65397683,3199.6,3198.7,0.00568424]
[1641760994648,1.19874882,3198.9,3198.7,0.00568424]
[1641760994854,0.24065882,3198.9,3198.8,0.78143]
[1641760995149,0.24065882,3198.9,3198.8,0.78654581]
[1641760995350,1.76413151,3198.9,3198.8,0.78654581]
[1641760995751,1.52347269,3198.9,3198.8,0.78654581]
[1641760998809,4.22349235,3198.9,3198.8,0.00511581]
[1641760999004,4.30163235,3198.9,3198.8,0.00511581]
[1641760999204,4.30163235,3198.9,3198.6,0.00625266]
[1641760999405,0.07814,3198.8,3198.6,0.00625266]
[1641760999805,1.00055333,3198.3,3198.2,0.00852636]
[1641761000008,2.23068053,3198.3,3198.2,0.79011636]
[1641761001354,2.23068053,3198.3,3198.2,0.00852636]
[1641761001755,2.23068053,3198.3,3198.0,0.0096632]
[1641761001959,2.23068053,3198.3,3197.9,0.01023163]
[1641761002356,0.8599168,3198.2,3197.9,0.01023163]
[1641761002560,1.6610168,3198.2,3197.9,0.01023163]
[1641761002756,2.6610168,3198.2,3197.4,0.79486374]
[1641761002956,1.87927,3198.2,3197.4,0.79486374]
[1641761003156,1.49701181,3198.1,3197.5,0.01250532]
[1641761003357,0.07817,3198.0,3197.5,0.01250532]
[1641761003558,0.07817,3198.0,3196.9,0.01591586]
[1641761003559,1.41547602,3197.2,3196.9,0.01591586]
[1641761003757,1.41547602,3197.2,3197.0,1.5636]
[1641761004156,1.41547602,3197.2,3197.1,0.01477901]
[1641761004403,0.07817,3198.0,3197.1,0.01477901]
[1641761005101,0.8599874,3198.0,3197.1,0.01477901]
[1641761005300,0.8599874,3198.0,3197.2,0.78182]
[1641761005598,1.30302561,3197.5,3197.3,0.01364217]
[1641761005798,0.8599874,3198.0,3197.3,0.01364217]
[1641761006197,1.38251782,3197.5,3197.3,0.01364217]
[1641761008252,1.38251782,3197.5,3197.4,0.78177]
[1641761008654,0.07817,3198.0,3197.4,0.79484374]
[1641761008851,3.12037,3198.1,3197.5,0.07817]
[1641761009054,3.12037,3198.1,3197.5,0.09067532]
[1641761009352,1.1884,3198.2,3197.6,0.0119369]
[1641761009552,1.22988558,3198.1,3197.9,1.21067002]
[1641761009751,1.22988558,3198.1,3198.0,0.78161]
[1641761009950,1.22988558,3198.1,3198.0,0.7912732]
[1641761013100,1.5007043,3198.5,3198.0,0.7912732]
[1641761013303,0.07817,3198.5,3198.0,0.7912732]
[1641761013504,0.07817,3198.5,3198.1,0.0595521]
[1641761013702,0.00130586,3198.6,3198.3,0.0424861]
[1641761014104,0.00130586,3198.6,3198.4,0.00738951]
[1641761014304,4.45,3198.8,3198.6,1.13461269]
[1641761014502,0.07815,3199.0,3198.6,1.13461269]
[1641761014703,0.07814,3199.1,3198.7,0.00568424]
[1641761015953,0.07814,3199.1,3198.8,0.78142]
[1641761016250,0.07814,3199.1,3198.9,0.00454739]
[1641761016849,0.07814,3199.1,3198.6,0.00625266]
[1641761017249,0.07814,3199.1,3198.6,0.00170527]
[1641761017853,1.30408639,3198.9,3198.6,0.00170527]
[1641761018048,1.30408639,3198.9,3198.7,0.78146]
[1641761018448,0.07814,3199.1,3198.7,0.78146]
[1641761019596,1.12678124,3198.8,3198.7,0.78146]
[1641761019800,1.12678124,3198.8,3198.6,0.00170527]
[1641761019998,1.12678124,3198.8,3198.5,1.56283]
[1641761019999,1.12678124,3198.8,3198.7,0.00113685]
[1641761020200,1.12678124,3198.8,3198.6,0.00170527]
[1641761023755,1.12678124,3198.8,3198.6,0.78318527]
[1641761024156,1.12678124,3198.8,3198.7,0.00113685]
[1641761024755,0.07814,3199.1,3198.7,0.00113685]
[1641761024956,0.07814,3199.1,3198.8,0.78143]
[1641761025660,0.07814,3199.1,3198.7,0.00113685]
[1641761025856,1.40253901,3199.0,3198.7,0.00113685]
[1641761026057,1.40253901,3199.0,3198.5,1.56283]
[1641761026058,1.40253901,3199.0,3198.6,0.00170527]
[1641761026658,1.40253901,3199.0,3198.7,0.78148]
[1641761033852,1.40253901,3199.0,3198.6,0.00170527]
[1641761036201,2.56237108,3198.9,3198.6,0.00170527]
[1641761036399,2.64051108,3198.9,3198.6,0.00170527]
[1641761036601,1.0,3198.8,3198.3,0.00341054]
[1641761036799,3.30683223,3198.7,3198.2,0.00397897]
[1641761036998,3.30683223,3198.7,3197.8,0.00625266]
[1641761037201,3.30683223,3198.7,3197.5,0.07815]
[1641761037202,1.11922294,3198.5,3197.6,0.00738951]
[1641761037401,1.43832826,3197.9,3197.5,0.03553951]
[1641761037601,1.43832826,3197.9,3197.5,0.07818]
[1641761037800,1.43832826,3197.9,3197.7,1.56329]
[1641761038002,1.43832826,3197.9,3197.5,0.78177]
[1641761040155,1.43832826,3197.9,3197.5,1.5633907]
[1641761040357,1.43832826,3197.9,3197.7,0.78165]
[1641761044224,1.43832826,3197.9,3197.7,1.5632474]
[1641761046256,1.43832826,3197.9,3197.7,0.78165]
[1641761047056,1.43832826,3197.9,3197.7,0.85982]
[1641761048255,1.43832826,3197.9,3197.7,0.78165]
[1641761050103,1.43832826,3197.9,3197.7,0.63165]
[1641761053853,1.43832826,3197.9,3197.3,0.07817]
[1641761054054,0.7819026,3197.7,3197.3,0.07817]
[1641761054250,1.6420006,3197.8,3197.4,0.00113684]
[1641761055055,1.2169173,3197.7,3197.4,0.00113684]
[1641761055853,3.37725001,3197.6,3197.4,0.00113684]
[1641761056254,0.07817,3197.5,3197.4,0.00113684]
[1641761056454,3.25542001,3197.6,3197.2,0.00227369]
[1641761056654,0.07818,3197.5,3197.2,0.00227369]
[1641761056904,1.26168017,3197.4,3197.2,0.00227369]
[1641761057302,1.26168017,3197.4,3197.2,0.78413369]
[1641761057699,1.26168017,3197.4,3197.3,0.00170527]
[1641761059101,1.21168017,3197.4,3197.3,0.00170527]
[1641761063658,1.21168017,3197.4,3197.1,0.00284211]
[1641761064503,1.21168017,3197.4,3197.1,0.78473211]
[1641761064908,1.21168017,3197.4,3197.2,0.00227369]
[1641761065505,1.21168017,3197.4,3197.3,0.78181]
[1641761066007,1.21168017,3197.4,3197.3,0.00170527]
[1641761066307,1.21168017,3197.4,3197.1,0.00284211]
[1641761066712,1.21168017,3197.4,3197.0,0.78191]
[1641761067008,1.21168017,3197.4,3197.1,0.00284211]
[1641761067808,1.21168017,3197.4,3197.1,0.78474211]
[1641761068277,1.21168017,3197.4,3197.2,0.00227369]
[1641761068667,1.21168017,3197.4,3197.0,1.56708054]
[1641761068868,1.21168017,3197.4,3197.1,0.00284211]
[1641761069469,1.21168017,3197.4,3197.2,0.78187]
[1641761069870,1.21168017,3197.4,3197.3,0.00170527]
[1641761071271,5.16168017,3197.4,3197.3,0.00170527]
[1641761071772,5.16168017,3197.4,3197.1,0.00284211]
[1641761072035,0.07818,3197.3,3197.1,0.00284211]
[1641761072233,0.07818,3197.3,3196.9,0.00397896]
[1641761072532,0.07818,3197.3,3196.7,0.00511581]
[1641761072733,1.40226839,3197.0,3196.7,0.00511581]
[1641761073532,1.45998584,3196.9,3196.7,0.00511581]
[1641761073734,1.45998584,3196.9,3196.8,0.78195]
[1641761074134,1.45998584,3196.9,3196.8,0.78649738]
[1641761074335,1.45998584,3196.9,3196.8,0.00454738]
[1641761074336,6.05998584,3196.9,3196.8,0.00454738]
[1641761074534,6.13818584,3196.9,3196.8,0.00454738]
[1641761074734,6.13818584,3196.9,3196.6,0.00568423]
[1641761075655,1.0053499,3196.8,3196.6,0.00568423]
[1641761076354,0.0782,3196.7,3196.6,0.00568423]
[1641761076555,0.7544,3196.7,3196.6,0.00568423]
[1641761078554,0.0782,3196.7,3196.6,0.00568423]
[1641761078753,1.0835499,3196.8,3196.6,0.00568423]
[1641761079402,3.68369603,3196.8,3196.6,0.00568423]
[1641761079602,1.0835499,3196.8,3196.6,0.00568423]
[1641761080004,2.0835499,3196.8,3196.6,0.00568423]
[1641761080205,1.0835499,3196.8,3196.6,0.00568423]
[1641761081506,1.0053499,3196.8,3196.6,0.00568423]
[1641761081706,1.0053499,3196.8,3196.3,0.0073895]
[1641761081907,1.0053499,3196.8,3196.3,0.7894695]
[1641761082108,1.0053499,3196.8,3196.1,0.00852635]
[1641761082308,2.67170617,3196.7,3196.4,0.00682108]
[1641761082606,0.0782,3196.7,3196.1,0.00852635]
[1641761083007,0.07821,3196.7,3196.1,0.00852635]
[1641761083268,1.22095566,3196.3,3196.0,0.00909477]
[1641761083859,1.22095566,3196.3,3196.0,0.79123477]
[1641761084063,1.22095566,3196.3,3196.0,0.00909477]
[1641761084263,1.22095566,3196.3,3196.1,0.00852635]
[1641761084462,1.22839054,3196.2,3195.7,0.01080004]
[1641761085260,1.22839054,3196.2,3195.8,0.78219]
[1641761085659,1.22839054,3196.2,3195.9,0.00966319]
[1641761086914,1.22839054,3196.2,3196.0,0.78211]
[1641761087415,1.22839054,3196.2,3196.1,0.00852635]
[1641761089722,1.22839054,3196.2,3195.9,0.00966319]
[1641761089918,1.30660054,3196.2,3195.9,0.00966319]
[1641761090519,1.22839054,3196.2,3195.9,0.79183319]
[1641761090757,1.22839054,3196.2,3195.9,0.78217]
[1641761090958,1.22839054,3196.2,3196.0,0.00909477]
[1641761091558,1.22839054,3196.2,3195.7,0.01080004]
[1641761091758,1.22839054,3196.2,3196.0,0.78215]
[1641761092160,1.22839054,3196.2,3196.1,0.00852635]
[1641761093962,3.84470499,3196.2,3195.9,0.00966319]
[1641761094162,0.07821,3196.1,3195.8,0.01023162]
[1641761094407,0.07821,3196.1,3195.6,0.01136847]
[1641761095208,2.67032291,3196.1,3195.6,0.01136847]
[1641761095408,0.07821,3196.1,3195.6,0.01136847]
[1641761096316,1.21036907,3196.0,3195.6,0.01136847]
[1641761096509,2.85110439,3195.9,3195.6,0.01136847]
[1641761098453,0.8605322,3195.9,3195.6,0.01136847]
[1641761098855,1.8605322,3195.9,3195.6,0.01136847]
[1641761099655,2.1605322,3195.9,3195.6,0.01136847]
[1641761100254,6.0,3195.8,3195.5,0.0782]
[1641761100457,0.860684,3195.7,3195.5,0.0782]
[1641761100657,4.41912201,3195.6,3195.5,0.0782]
[1641761100856,4.49734201,3195.6,3195.5,0.0782]
[1641761101921,5.49734201,3195.6,3195.5,0.0782]
[1641761102105,6.54244201,3195.6,3195.5,0.0782]
[1641761102307,5.8,3195.5,3194.6,0.78248]
[1641761102507,2.66459168,3195.4,3194.4,1.64314]
[1641761102706,0.07824,3195.4,3194.7,0.00511581]
[1641761103004,1.3,3195.3,3194.4,0.00682108]
[1641761103205,0.07824,3195.2,3194.4,0.00682108]
[1641761103407,2.61265197,3195.1,3194.4,0.00682108]
[1641761103608,0.07824,3195.0,3194.4,0.00682108]
[1641761103806,0.48199576,3195.1,3194.5,5.0]
[1641761104008,0.48199576,3195.1,3194.4,2.28328681]
[1641761104205,0.48199576,3195.1,3194.6,0.00568423]
[1641761104406,0.48199576,3195.1,3194.5,0.53449265]
[1641761104607,0.48199576,3195.1,3194.6,0.00568423]
[1641761104909,1.2431,3195.7,3195.0,1.07613908]
[1641761105110,0.00113685,3195.8,3195.1,0.7822115]
[1641761105308,8.22557685,3196.1,3195.1,0.00284211]
[1641761105507,8.22557685,3196.1,3195.4,0.01208182]
[1641761105769,0.00113685,3196.0,3195.6,0.78214]
[1641761106067,1.12015969,3195.9,3195.6,0.78214]
[1641761106265,1.12015969,3195.9,3195.7,1.14115287]
[1641761106464,0.00113685,3196.0,3195.7,1.14115287]
[1641761106863,0.00113685,3196.0,3195.8,0.78209]
[1641761107064,0.00113685,3196.0,3195.9,0.07821]
[1641761108070,0.03113685,3196.0,3195.9,0.07821]
[1641761108964,0.03113685,3196.0,3195.9,8.07821]
[1641761109169,0.20719319,3196.0,3195.9,11.53940861]
[1641761109405,0.35214953,3196.0,3195.9,8.82821]
[1641761109604,0.35214953,3196.0,3195.9,11.80312246]
[1641761109805,0.14504953,3196.0,3195.9,17.01525415]
[1641761110009,0.07821,3197.5,3196.5,0.78185]
[1641761110209,0.07821,3197.5,3196.5,0.7646666]
[1641761110414,0.00568423,3197.0,3196.3,1.156]
[1641761110615,0.00568423,3197.0,3196.4,0.0782]
[1641761110810,0.00511581,3196.9,3196.5,1.2318486]
[1641761111011,0.00511581,3196.9,3196.7,1.56378]
[1641761111211,8.3628,3197.6,3196.8,7.3782]
[1641761111412,8.3628,3197.6,3196.8,0.0782]
[1641761111611,1.50797208,3196.9,3196.8,1.37881441]
[1641761111816,1.50797208,3196.9,3196.5,0.45]
[1641761111817,1.50797208,3196.9,3196.7,0.07818]
[1641761112012,1.51308789,3196.9,3196.6,0.0782]
[1641761112213,0.00454739,3196.8,3196.7,2.3455234]
[1641761112815,0.00454739,3196.8,3196.7,1.56372]
[1641761114656,0.00454739,3196.8,3196.5,1.232]
[1641761114855,0.00454739,3196.8,3196.5,0.782]
[1641761115058,0.00397896,3196.7,3196.5,0.782]
[1641761115456,2.75283004,3196.9,3196.4,0.0782]
[1641761115457,0.00341054,3196.6,3196.4,0.0782]
[1641761115657,0.00341054,3196.6,3195.9,1.57624169]
[1641761115658,0.00341054,3196.6,3195.9,1.56411]
[1641761115858,0.00284212,3196.5,3195.9,1.56411]
[1641761116256,1.37030015,3196.1,3195.9,1.56411]
[1641761116457,1.26260923,3196.0,3195.9,1.56411]
[1641761117615,1.26260923,3196.0,3195.9,1.51411]
[1641761117811,1.21214039,3196.4,3195.9,1.51411]
[1641761118012,0.00397896,3196.7,3195.9,1.59232]
[1641761118212,0.00170527,3196.3,3196.1,1.56395]
[1641761118413,0.00341054,3196.6,3196.1,1.56395]
[1641761118610,1.139,3197.3,3196.2,0.0782]
[1641761118611,1.2172,3197.3,3196.2,0.0782]
[1641761118813,3.6651,3197.4,3196.3,1.10584445]
[1641761119029,0.00568423,3197.0,3196.4,2.6505369]
[1641761119211,0.00568423,3197.0,3196.6,2.0764399]
[1641761119412,0.00511581,3196.9,3196.6,2.4546399]
[1641761119813,0.00454739,3196.8,3196.6,2.1546399]
[1641761120014,0.00454739,3196.8,3196.6,0.86011]
[1641761120214,0.00397896,3196.7,3196.6,0.86011]
[1641761121456,0.00397896,3196.7,3196.6,2.18657271]
[1641761122059,0.98138497,3197.3,3196.6,2.18657271]
[1641761122262,1.39144597,3197.1,3196.6,2.18657271]
[1641761122457,1.39144597,3197.1,3196.6,0.86011]
[1641761122659,1.39144597,3197.1,3196.6,0.78191]
[1641761122861,0.00284212,3197.2,3196.6,1.23191]
[1641761123064,0.00284212,3197.2,3196.7,0.0782]
[1641761123261,0.0022737,3197.1,3196.9,0.7817]
[1641761123464,0.0022737,3197.1,3197.0,8.07818]
[1641761123660,0.00130586,3197.7,3197.0,0.52818]
[1641761123862,1.20160493,3197.7,3197.4,1.09940292]
[1641761124062,0.00511581,3197.6,3197.0,0.82818]
[1641761124262,0.00511581,3197.6,3197.0,1.82818]
[1641761124512,0.00454739,3197.5,3197.4,1.56338]
[1641761125308,0.00454739,3197.5,3197.4,31.27531901]
[1641761126509,0.00454739,3197.5,3197.4,32.59425628]
[1641761127811,0.00454739,3197.5,3197.4,34.42242628]
[1641761128015,4.6283,3198.6,3197.5,11.55]
[1641761128272,4.6283,3198.6,3197.4,35.22242628]
[1641761128273,4.6283,3198.6,3198.1,0.7815]
[1641761128474,0.00511581,3198.4,3198.1,0.7815]
[1641761128775,0.00454739,3198.3,3198.1,2.16837339]
[1641761129171,0.00397896,3198.2,3198.1,2.16837339]
[1641761130872,0.00397896,3198.2,3198.1,2.15837339]
[1641761132406,1.53640075,3198.2,3198.1,0.7715]
[1641761132609,1.53640075,3198.2,3198.0,1.56299]
[1641761133007,0.00341054,3198.1,3198.0,1.56299]
[1641761133406,0.00341054,3198.1,3197.9,0.45]
[1641761133407,1.03934963,3198.0,3197.9,0.45]
[1641761133706,1.04219175,3198.0,3197.7,0.85983]
[1641761133907,1.04219175,3198.0,3197.7,0.78168]
[1641761134107,0.00227369,3197.9,3197.7,0.78168]
[1641761134407,0.00170527,3197.8,3197.7,0.78168]
[1641761137360,0.00170527,3197.8,3197.7,0.77168]
[1641761141616,0.00170527,3197.8,3197.5,0.07817]
[1641761141617,1.35733111,3197.7,3197.5,0.07817]
[1641761142013,1.35846796,3197.7,3197.5,0.07817]
[1641761142212,0.00113685,3197.7,3197.4,32.75110844]
[1641761142412,0.00113685,3197.7,3197.5,2.6121141]
[1641761142612,0.00113685,3197.7,3197.6,5.43164]
[1641761142918,0.00113685,3197.7,3197.6,3.34591369]
[1641761144256,0.00113685,3197.7,3197.6,0.77164]
[1641761144755,0.07817,3198.5,3197.9,1.11236744]
[1641761144957,0.00130586,3198.6,3197.9,1.11236744]
[1641761145161,0.00284211,3198.2,3198.0,1.86306]
[1641761145461,0.00227369,3198.1,3198.0,1.86306]
[1641761146158,0.00227369,3198.1,3198.0,3.05731369]
[1641761147009,0.00227369,3198.1,3198.0,5.5578594]
[1641761149411,0.00227369,3198.1,3198.0,3.05731369]
[1641761149610,0.00227369,3198.1,3198.0,1.56306]
[1641761150312,0.00227369,3198.1,3197.9,1.11236744]